[Event "Late-Titled-Tuesday-Blitz-June-04-2024"]
[Site "Chess.com"]
[Date "2024.06.04"]
[Round "3"]
[White "picturesquecheck"]
[Black "Meri-Arabidze"]
[Result "1-0"]
[WhiteElo "2455"]
[BlackElo "2681"]
[TimeControl "180+1"]
[EndTime "14:29:00 PDT"]
[Termination "picturesquecheck won on time"]

1. g3 {[%clk 0:03:00.9]} 1... d5 {[%clk 0:02:59.8]} 2. Bg2 {[%clk 0:03:01.5]}
2... Nf6 {[%clk 0:03:00.4]} 3. Nf3 {[%clk 0:03:02.1]} 3... e6 {[%clk 0:03:00.9]}
4. O-O {[%clk 0:03:02.6]} 4... b5 {[%clk 0:03:01]} 5. d4 {[%clk 0:03:03.1]} 5...
Bb7 {[%clk 0:03:00.7]} 6. a4 {[%clk 0:03:03.7]} 6... b4 {[%clk 0:03:00.8]} 7. c4
{[%clk 0:03:03.9]} 7... bxc3 {[%clk 0:03:00.7]} 8. Nxc3 {[%clk 0:03:03.5]} 8...
Be7 {[%clk 0:03:00.9]} 9. Ne5 {[%clk 0:03:03.6]} 9... O-O {[%clk 0:03:00.9]} 10.
Bg5 {[%clk 0:03:03]} 10... Nbd7 {[%clk 0:02:59.8]} 11. Nxd7 {[%clk 0:02:54.2]}
11... Qxd7 {[%clk 0:02:58.6]} 12. a5 {[%clk 0:02:48.5]} 12... Ba6 {[%clk
0:02:53.8]} 13. Re1 {[%clk 0:02:45.3]} 13... Rab8 {[%clk 0:02:53.4]} 14. Qd2
{[%clk 0:02:42.1]} 14... h6 {[%clk 0:02:52.8]} 15. Bxf6 {[%clk 0:02:30]} 15...
Bxf6 {[%clk 0:02:51.9]} 16. e4 {[%clk 0:02:29.4]} 16... dxe4 {[%clk 0:02:37.9]}
17. Nxe4 {[%clk 0:02:01.4]} 17... Qxd4 {[%clk 0:02:37.1]} 18. Nxf6+ {[%clk
0:02:01]} 18... Qxf6 {[%clk 0:02:37]} 19. b4 {[%clk 0:01:58.7]} 19... Bb5 {[%clk
0:02:19.3]} 20. Rac1 {[%clk 0:01:54.6]} 20... Rfd8 {[%clk 0:02:17.3]} 21. Qe3
{[%clk 0:01:52.3]} 21... a6 {[%clk 0:02:10.9]} 22. Rxc7 {[%clk 0:01:45.2]} 22...
Rd4 {[%clk 0:02:00]} 23. Qc3 {[%clk 0:01:28.2]} 23... Rbd8 {[%clk 0:01:59.4]}
24. Rc8 {[%clk 0:01:17.8]} 24... Rxc8 {[%clk 0:01:31.6]} 25. Qxc8+ {[%clk
0:01:18.7]} 25... Kh7 {[%clk 0:01:30.5]} 26. Qc2+ {[%clk 0:01:10.8]} 26... g6
{[%clk 0:01:28.3]} 27. Qb2 {[%clk 0:00:45.5]} 27... Kg7 {[%clk 0:01:27.6]} 28.
Bf1 {[%clk 0:00:43]} 28... Rd5 {[%clk 0:00:52.4]} 29. Qb3 {[%clk 0:00:32.8]}
29... Bxf1 {[%clk 0:00:46.7]} 30. Rxf1 {[%clk 0:00:33.7]} 30... Rb5 {[%clk
0:00:47]} 31. Qc4 {[%clk 0:00:31.2]} 31... e5 {[%clk 0:00:38.3]} 32. Re1 {[%clk
0:00:28.6]} 32... Qd6 {[%clk 0:00:36.3]} 33. Qe4 {[%clk 0:00:19.6]} 33... h5
{[%clk 0:00:28.5]} 34. h4 {[%clk 0:00:17.8]} 34... f6 {[%clk 0:00:13.4]} 35. Qa8
{[%clk 0:00:17]} 35... Rxb4 {[%clk 0:00:08.8]} 36. Qa7+ {[%clk 0:00:16.7]} 36...
Kh6 {[%clk 0:00:06.9]} 37. Rc1 {[%clk 0:00:16.8]} 37... Rd4 {[%clk 0:00:05.2]}
38. Qa8 {[%clk 0:00:10.9]} 38... Rd1+ {[%clk 0:00:03.9]} 39. Rxd1 {[%clk
0:00:11.1]} 39... Qxd1+ {[%clk 0:00:03.9]} 40. Kh2 {[%clk 0:00:11.8]} 40... Kg7
{[%clk 0:00:02.3]} 41. Qxa6 {[%clk 0:00:09.9]} 41... Qf3 {[%clk 0:00:02.4]} 42.
Qa7+ {[%clk 0:00:09.5]} 42... Kg8 {[%clk 0:00:01]} 43. Kg1 {[%clk 0:00:09.7]}
43... Qd1+ {[%clk 0:00:01]} 44. Kg2 {[%clk 0:00:09.6]} 44... Qd5+ {[%clk
0:00:01.1]} 45. Kh2 {[%clk 0:00:09.7]} 45... Qf3 {[%clk 0:00:01.5]} 46. Kg1
{[%clk 0:00:09.6]} 46... g5 {[%clk 0:00:01.3]} 47. hxg5 {[%clk 0:00:08.9]} 47...
fxg5 {[%clk 0:00:01.7]} 48. Qe3 {[%clk 0:00:09.5]} 48... Qd1+ {[%clk 0:00:01.5]}
49. Kg2 {[%clk 0:00:09.1]} 49... Qd5+ {[%clk 0:00:01.7]} 50. Kh2 {[%clk
0:00:09.3]} 50... g4 {[%clk 0:00:01.9]} 51. Qg5+ {[%clk 0:00:09.3]} 51... Kf8
{[%clk 0:00:01.6]} 52. Qxh5 {[%clk 0:00:09.7]} 52... Qf3 {[%clk 0:00:02]} 53.
Qh6+ {[%clk 0:00:09.3]} 53... Kg8 {[%clk 0:00:01.9]} 54. Qe3 {[%clk 0:00:09.9]}
54... Qd5 {[%clk 0:00:01.6]} 55. Qg5+ {[%clk 0:00:09.4]} 55... Kf7 {[%clk
0:00:01.5]} 56. Qxg4 {[%clk 0:00:10.3]} 56... e4 {[%clk 0:00:02]} 57. Qf4+
{[%clk 0:00:10.2]} 57... Ke7 {[%clk 0:00:01.9]} 58. a6 {[%clk 0:00:10.8]} 58...
Qh5+ {[%clk 0:00:01.8]} 59. Kg2 {[%clk 0:00:07.7]} 59... Qd5 {[%clk 0:00:01.9]}
60. Qe3 {[%clk 0:00:06.9]} 60... Kf6 {[%clk 0:00:01]} 61. a7 {[%clk 0:00:07.6]}
61... Kf5 {[%clk 0:00:01.1]} 62. g4+ {[%clk 0:00:07.9]} 62... Kxg4 {[%clk
0:00:01.1]} 63. Qg3+ {[%clk 0:00:07.1]} 63... Kf5 {[%clk 0:00:01.6]} 64. Qh3+
{[%clk 0:00:07.3]} 64... Kf4 {[%clk 0:00:01.6]} 65. Qh4+ {[%clk 0:00:06.6]} 1-0

[Event "Late-Titled-Tuesday-Blitz-June-04-2024"]
[Site "Chess.com"]
[Date "2024.06.04"]
[Round "3"]
[White "KVAIDAN"]
[Black "chrisclaireredfield"]
[Result "1/2-1/2"]
[WhiteElo "2352"]
[BlackElo "2554"]
[TimeControl "180+1"]
[EndTime "14:29:04 PDT"]
[Termination "Game drawn - insufficient material"]

1. f4 {[%clk 0:03:00.3]} 1... e5 {[%clk 0:02:59.2]} 2. d3 {[%clk 0:03:00.1]}
2... Nc6 {[%clk 0:02:56.3]} 3. Nf3 {[%clk 0:02:59.6]} 3... Bd6 {[%clk
0:02:42.9]} 4. Nc3 {[%clk 0:02:54.8]} 4... exf4 {[%clk 0:02:39.3]} 5. Ne4 {[%clk
0:02:54.7]} 5... Bb4+ {[%clk 0:02:37.6]} 6. c3 {[%clk 0:02:54.5]} 6... Be7
{[%clk 0:02:37.8]} 7. Bxf4 {[%clk 0:02:54.8]} 7... d5 {[%clk 0:02:38]} 8. Ng3
{[%clk 0:02:51.4]} 8... Nf6 {[%clk 0:02:37.9]} 9. Qd2 {[%clk 0:02:48.4]} 9...
O-O {[%clk 0:02:37.4]} 10. O-O-O {[%clk 0:02:48.4]} 10... Bg4 {[%clk 0:02:34]}
11. e4 {[%clk 0:02:48.2]} 11... dxe4 {[%clk 0:02:32.6]} 12. dxe4 {[%clk
0:02:47.7]} 12... Qxd2+ {[%clk 0:02:28.3]} 13. Rxd2 {[%clk 0:02:47.2]} 13...
Rac8 {[%clk 0:02:21.8]} 14. Bb5 {[%clk 0:02:45.9]} 14... h6 {[%clk 0:01:48.5]}
15. Bxc6 {[%clk 0:02:40.6]} 15... bxc6 {[%clk 0:01:48.3]} 16. Ne5 {[%clk
0:02:41]} 16... c5 {[%clk 0:01:44.1]} 17. Nxg4 {[%clk 0:02:33.1]} 17... Nxg4
{[%clk 0:01:43.8]} 18. Rd7 {[%clk 0:02:33.5]} 18... Bg5 {[%clk 0:01:41.4]} 19.
Bxg5 {[%clk 0:02:31.2]} 19... hxg5 {[%clk 0:01:41.9]} 20. Nf5 {[%clk 0:02:28.5]}
20... Ne5 {[%clk 0:01:29.9]} 21. h4 {[%clk 0:02:17.3]} 21... g4 {[%clk
0:01:18.3]} 22. Rd5 {[%clk 0:02:14]} 22... Rfe8 {[%clk 0:01:15.4]} 23. h5 {[%clk
0:02:12.8]} 23... c4 {[%clk 0:01:10.3]} 24. h6 {[%clk 0:02:11.2]} 24... g6
{[%clk 0:01:04.5]} 25. h7+ {[%clk 0:02:09.4]} 25... Kh8 {[%clk 0:01:04.1]} 26.
Nd4 {[%clk 0:02:06.5]} 26... Nd3+ {[%clk 0:00:58.7]} 27. Kc2 {[%clk 0:02:06.3]}
27... Nf2 {[%clk 0:00:58.9]} 28. Rh4 {[%clk 0:02:00.9]} 28... Nxe4 {[%clk
0:00:53.2]} 29. Rxg4 {[%clk 0:01:57.2]} 29... Kxh7 {[%clk 0:00:52.7]} 30. Ra5
{[%clk 0:01:52.5]} 30... c5 {[%clk 0:00:35.7]} 31. Nf3 {[%clk 0:01:52.4]} 31...
Nf2 {[%clk 0:00:14.4]} 32. Rxc4 {[%clk 0:01:38.3]} 32... Re2+ {[%clk 0:00:13.8]}
33. Kc1 {[%clk 0:01:38.6]} 33... Rd8 {[%clk 0:00:11.7]} 34. Nd4 {[%clk
0:01:22.9]} 34... cxd4 {[%clk 0:00:11.3]} 35. cxd4 {[%clk 0:01:21.6]} 35... Nd3+
{[%clk 0:00:11.2]} 36. Kd1 {[%clk 0:01:19.8]} 36... Nxb2+ {[%clk 0:00:11.2]} 37.
Kxe2 {[%clk 0:01:20.3]} 37... Nxc4 {[%clk 0:00:11.6]} 38. Rxa7 {[%clk
0:01:20.8]} 38... Kg7 {[%clk 0:00:11.6]} 39. Kd3 {[%clk 0:01:20.4]} 39... Ne5+
{[%clk 0:00:11.1]} 40. Ke4 {[%clk 0:01:20.5]} 40... Nc6 {[%clk 0:00:10.2]} 41.
Ra4 {[%clk 0:01:21.1]} 41... Ne7 {[%clk 0:00:08.4]} 42. Rc4 {[%clk 0:01:19.4]}
42... Nd5 {[%clk 0:00:08]} 43. a4 {[%clk 0:01:19]} 43... f5+ {[%clk 0:00:05.6]}
44. Ke5 {[%clk 0:01:17.6]} 44... Ne3 {[%clk 0:00:05.8]} 45. Rc7+ {[%clk
0:01:17.3]} 45... Kh6 {[%clk 0:00:06]} 46. a5 {[%clk 0:01:16.4]} 46... Nxg2
{[%clk 0:00:04.7]} 47. a6 {[%clk 0:01:15.7]} 47... f4 {[%clk 0:00:05.2]} 48. a7
{[%clk 0:01:15.8]} 48... f3 {[%clk 0:00:04.8]} 49. Rf7 {[%clk 0:01:15.7]} 49...
Ra8 {[%clk 0:00:03.7]} 50. d5 {[%clk 0:01:14]} 50... Ne3 {[%clk 0:00:01.4]} 51.
Rxf3 {[%clk 0:01:11]} 51... Ng4+ {[%clk 0:00:01.6]} 52. Kf4 {[%clk 0:01:10.9]}
52... Nf6 {[%clk 0:00:01.7]} 53. Ke5 {[%clk 0:01:09.9]} 53... Ng4+ {[%clk
0:00:01.8]} 54. Kf4 {[%clk 0:01:09.3]} 54... Nf6 {[%clk 0:00:02.2]} 55. Ke5
{[%clk 0:01:09.1]} 55... Nh5 {[%clk 0:00:01.9]} 56. Ra3 {[%clk 0:01:08.1]} 56...
g5 {[%clk 0:00:02.1]} 57. d6 {[%clk 0:01:08.5]} 57... g4 {[%clk 0:00:02.2]} 58.
d7 {[%clk 0:01:09]} 58... g3 {[%clk 0:00:01.4]} 59. d8=Q {[%clk 0:01:08.5]}
59... Rxd8 {[%clk 0:00:01.6]} 60. a8=Q {[%clk 0:01:08.1]} 60... Rxa8 {[%clk
0:00:02.2]} 61. Rxa8 {[%clk 0:01:08.5]} 61... Kg5 {[%clk 0:00:02.9]} 62. Rg8+
{[%clk 0:01:07.3]} 62... Kh4 {[%clk 0:00:03.2]} 63. Ke4 {[%clk 0:01:07.5]} 63...
Nf6+ {[%clk 0:00:02.7]} 64. Kf3 {[%clk 0:01:07.9]} 64... Nh5 {[%clk 0:00:03]}
65. Kg2 {[%clk 0:01:08.6]} 65... Nf4+ {[%clk 0:00:02.1]} 66. Kg1 {[%clk
0:01:08.7]} 66... Nh3+ {[%clk 0:00:02.2]} 67. Kh1 {[%clk 0:01:08.2]} 67... Nf4
{[%clk 0:00:02.2]} 68. Rf8 {[%clk 0:01:07.5]} 68... Kg4 {[%clk 0:00:02.1]} 69.
Kg1 {[%clk 0:01:06.6]} 69... Kf3 {[%clk 0:00:02.5]} 70. Rf7 {[%clk 0:01:05.4]}
70... Kg4 {[%clk 0:00:02.3]} 71. Ra7 {[%clk 0:01:04.1]} 71... Kf3 {[%clk
0:00:02.6]} 72. Ra3+ {[%clk 0:01:03.2]} 72... Kg4 {[%clk 0:00:02.9]} 73. Ra4
{[%clk 0:01:02.8]} 73... Kf3 {[%clk 0:00:03]} 74. Ra3+ {[%clk 0:01:02.2]} 74...
Kg4 {[%clk 0:00:03.3]} 75. Kh1 {[%clk 0:01:02.4]} 75... Nh3 {[%clk 0:00:03.1]}
76. Kg2 {[%clk 0:01:02.2]} 76... Nf4+ {[%clk 0:00:03.5]} 77. Kg1 {[%clk
0:01:02.6]} 77... Nh3+ {[%clk 0:00:03.9]} 78. Kf1 {[%clk 0:01:02.1]} 78... Nf4
{[%clk 0:00:04.2]} 79. Ra4 {[%clk 0:01:02.2]} 79... Kf3 {[%clk 0:00:04.5]} 80.
Ra3+ {[%clk 0:01:01]} 80... Kg4 {[%clk 0:00:05]} 81. Kg1 {[%clk 0:01:00.8]}
81... Nh3+ {[%clk 0:00:04.8]} 82. Kh1 {[%clk 0:00:59.7]} 82... Nf4 {[%clk
0:00:05.1]} 83. Ra8 {[%clk 0:00:59.3]} 83... Kf3 {[%clk 0:00:05.3]} 84. Ra3+
{[%clk 0:00:57.3]} 84... Kf2 {[%clk 0:00:05.2]} 85. Ra2+ {[%clk 0:00:55.6]}
85... Ne2 {[%clk 0:00:05.4]} 86. Rxe2+ {[%clk 0:00:53.6]} 86... Kxe2 {[%clk
0:00:05.7]} 87. Kg2 {[%clk 0:00:54.2]} 87... Ke3 {[%clk 0:00:06.2]} 88. Kxg3
{[%clk 0:00:55.1]} 1/2-1/2

[Event "Late-Titled-Tuesday-Blitz-June-04-2024"]
[Site "Chess.com"]
[Date "2024.06.04"]
[Round "3"]
[White "semchik90"]
[Black "bazar-wokzal"]
[Result "0-1"]
[WhiteElo "2411"]
[BlackElo "2586"]
[TimeControl "180+1"]
[EndTime "14:29:06 PDT"]
[Termination "bazar-wokzal won by checkmate"]

1. Nf3 {[%clk 0:03:00.1]} 1... c5 {[%clk 0:02:58.6]} 2. c4 {[%clk 0:02:59]} 2...
g6 {[%clk 0:02:58.3]} 3. e3 {[%clk 0:02:59.3]} 3... Bg7 {[%clk 0:02:58.1]} 4. d4
{[%clk 0:03:00]} 4... Nf6 {[%clk 0:02:57.7]} 5. Nc3 {[%clk 0:03:00.1]} 5... O-O
{[%clk 0:02:56.9]} 6. Be2 {[%clk 0:03:00.5]} 6... d5 {[%clk 0:02:56.7]} 7. dxc5
{[%clk 0:02:56.1]} 7... dxc4 {[%clk 0:02:40.5]} 8. Qxd8 {[%clk 0:02:54.8]} 8...
Rxd8 {[%clk 0:02:39.9]} 9. Bxc4 {[%clk 0:02:55.4]} 9... Nbd7 {[%clk 0:02:28.6]}
10. O-O {[%clk 0:02:18.9]} 10... Nxc5 {[%clk 0:02:27.6]} 11. Ne5 {[%clk
0:02:17.7]} 11... Be6 {[%clk 0:02:21.6]} 12. Bxe6 {[%clk 0:02:14.8]} 12... Nxe6
{[%clk 0:02:20.6]} 13. b3 {[%clk 0:02:01.9]} 13... Nd5 {[%clk 0:02:18.2]} 14.
Nxd5 {[%clk 0:01:42.8]} 14... Bxe5 {[%clk 0:01:51.5]} 15. Nxe7+ {[%clk
0:01:40.9]} 15... Kf8 {[%clk 0:01:51.1]} 16. Ba3 {[%clk 0:01:38]} 16... Bd6
{[%clk 0:01:46]} 17. Nxg6+ {[%clk 0:01:22.2]} 17... hxg6 {[%clk 0:01:45]} 18.
Bb2 {[%clk 0:01:22.9]} 18... Ke7 {[%clk 0:01:41.1]} 19. f4 {[%clk 0:01:20.3]}
19... Bc5 {[%clk 0:01:39.4]} 20. f5 {[%clk 0:01:15.2]} 20... Bxe3+ {[%clk
0:01:35.2]} 21. Kh1 {[%clk 0:01:15.6]} 21... gxf5 {[%clk 0:01:33.7]} 22. Rxf5
{[%clk 0:01:15.9]} 22... Bd4 {[%clk 0:01:31]} 23. Ba3+ {[%clk 0:01:13.4]} 23...
Ke8 {[%clk 0:01:26.4]} 24. Raf1 {[%clk 0:01:11.1]} 24... Rd7 {[%clk 0:01:24.4]}
25. Rh5 {[%clk 0:01:09.2]} 25... Rc8 {[%clk 0:01:23.5]} 26. g4 {[%clk
0:00:57.9]} 26... Rc2 {[%clk 0:01:22]} 27. Rd1 {[%clk 0:00:56.1]} 27... Bc5
{[%clk 0:00:58.3]} 28. Rxd7 {[%clk 0:00:25.2]} 28... Kxd7 {[%clk 0:00:56.8]} 29.
b4 {[%clk 0:00:24.7]} 29... Bd6 {[%clk 0:00:52.6]} 30. Rh7 {[%clk 0:00:17.1]}
30... Ng5 {[%clk 0:00:41.5]} 31. Rh5 {[%clk 0:00:14.1]} 31... Nf3 {[%clk
0:00:35.7]} 32. g5 {[%clk 0:00:11]} 32... Rxa2 {[%clk 0:00:34.2]} 33. Bc1 {[%clk
0:00:09.1]} 33... Ra1 {[%clk 0:00:29.8]} 34. Kg2 {[%clk 0:00:09.5]} 34... Ne1+
{[%clk 0:00:29.7]} 35. Kh3 {[%clk 0:00:06.9]} 35... Rxc1 {[%clk 0:00:29.6]} 36.
Rh7 {[%clk 0:00:07.6]} 36... Ke6 {[%clk 0:00:29.3]} 37. Rh8 {[%clk 0:00:07.2]}
37... Rc3+ {[%clk 0:00:28.2]} 38. Kg4 {[%clk 0:00:07.5]} 38... Rc4+ {[%clk
0:00:27.8]} 39. Kh3 {[%clk 0:00:07.9]} 39... Nf3 {[%clk 0:00:26.9]} 40. Re8+
{[%clk 0:00:06]} 40... Kd7 {[%clk 0:00:26.4]} 41. Rg8 {[%clk 0:00:03.3]} 41...
Rxb4 {[%clk 0:00:22]} 42. Kg2 {[%clk 0:00:03.6]} 42... Nh4+ {[%clk 0:00:21.4]}
43. Kh3 {[%clk 0:00:04.1]} 43... Ng6 {[%clk 0:00:19.6]} 44. Rg7 {[%clk
0:00:04.2]} 44... Rh4+ {[%clk 0:00:18]} 45. Kg2 {[%clk 0:00:04]} 45... Rxh2+
{[%clk 0:00:18]} 46. Kf3 {[%clk 0:00:03.8]} 46... Ke6 {[%clk 0:00:17.2]} 47. Rg8
{[%clk 0:00:03.7]} 47... a5 {[%clk 0:00:15.3]} 48. Re8+ {[%clk 0:00:03.5]} 48...
Kf5 {[%clk 0:00:15]} 49. Ra8 {[%clk 0:00:04.4]} 49... Ne5+ {[%clk 0:00:14.1]}
50. Kg3 {[%clk 0:00:02.4]} 50... Nc6+ {[%clk 0:00:13.1]} 51. Kf3 {[%clk
0:00:03]} 51... Nd4+ {[%clk 0:00:11.4]} 52. Ke3 {[%clk 0:00:02.2]} 52... Bc5
{[%clk 0:00:11.7]} 53. Kd3 {[%clk 0:00:02.5]} 53... b6 {[%clk 0:00:09.5]} 54.
Kc4 {[%clk 0:00:02.7]} 54... Kxg5 {[%clk 0:00:09.7]} 55. Rg8+ {[%clk 0:00:02.4]}
55... Kf4 {[%clk 0:00:09.6]} 56. Rg1 {[%clk 0:00:03.2]} 56... f5 {[%clk
0:00:09.5]} 57. Rf1+ {[%clk 0:00:03.5]} 57... Ke3 {[%clk 0:00:09]} 58. Re1+
{[%clk 0:00:03.9]} 58... Re2 {[%clk 0:00:09.1]} 59. Rf1 {[%clk 0:00:03.9]} 59...
f4 {[%clk 0:00:09.3]} 60. Kd5 {[%clk 0:00:03.5]} 60... f3 {[%clk 0:00:09.6]} 61.
Rb1 {[%clk 0:00:02.6]} 61... f2 {[%clk 0:00:09.7]} 62. Kc4 {[%clk 0:00:03.2]}
62... Re1 {[%clk 0:00:09.4]} 63. Rb2 {[%clk 0:00:02.6]} 63... f1=Q+ {[%clk
0:00:09]} 64. Kd5 {[%clk 0:00:02.4]} 64... Qf7+ {[%clk 0:00:08.6]} 65. Ke5
{[%clk 0:00:02.6]} 65... Kd3+ {[%clk 0:00:08.3]} 66. Re2 {[%clk 0:00:01.9]}
66... Nc6# {[%clk 0:00:07.3]} 0-1

[Event "Late-Titled-Tuesday-Blitz-June-04-2024"]
[Site "Chess.com"]
[Date "2024.06.04"]
[Round "3"]
[White "zverr1"]
[Black "Onthequiet"]
[Result "1-0"]
[WhiteElo "2603"]
[BlackElo "2425"]
[TimeControl "180+1"]
[EndTime "14:29:10 PDT"]
[Termination "zverr1 won by resignation"]

1. e4 {[%clk 0:03:00.9]} 1... c6 {[%clk 0:02:58.9]} 2. d4 {[%clk 0:02:57.8]}
2... d5 {[%clk 0:02:59.2]} 3. e5 {[%clk 0:02:58.4]} 3... Bf5 {[%clk 0:02:59.1]}
4. h4 {[%clk 0:02:58.1]} 4... h6 {[%clk 0:02:58.5]} 5. Bd3 {[%clk 0:02:57]} 5...
Bxd3 {[%clk 0:02:57.8]} 6. cxd3 {[%clk 0:02:57.9]} 6... e6 {[%clk 0:02:58.3]} 7.
Nc3 {[%clk 0:02:56.6]} 7... Nd7 {[%clk 0:02:56.8]} 8. Nf3 {[%clk 0:02:55.5]}
8... Bb4 {[%clk 0:02:45]} 9. Bd2 {[%clk 0:02:33.3]} 9... Ne7 {[%clk 0:02:43.2]}
10. h5 {[%clk 0:02:31.9]} 10... Bxc3 {[%clk 0:02:36.8]} 11. Bxc3 {[%clk
0:02:29.3]} 11... Qb6 {[%clk 0:02:36.9]} 12. Qd2 {[%clk 0:02:23.6]} 12... a5
{[%clk 0:02:34.9]} 13. Rh3 {[%clk 0:02:05.7]} 13... Qa6 {[%clk 0:02:30.6]} 14.
a4 {[%clk 0:01:51.1]} 14... c5 {[%clk 0:02:24]} 15. Kf1 {[%clk 0:01:25.2]} 15...
O-O {[%clk 0:01:46.4]} 16. g4 {[%clk 0:01:19.3]} 16... f6 {[%clk 0:01:39.8]} 17.
exf6 {[%clk 0:01:09.8]} 17... Nxf6 {[%clk 0:01:40]} 18. g5 {[%clk 0:01:07.7]}
18... Ne4 {[%clk 0:01:39.5]} 19. Qe2 {[%clk 0:00:56.3]} 19... Rxf3 {[%clk
0:01:36.4]} 20. Rxf3 {[%clk 0:00:48.6]} 20... Nxg5 {[%clk 0:01:36.2]} 21. Rf4
{[%clk 0:00:37.4]} 21... c4 {[%clk 0:01:28.2]} 22. Rd1 {[%clk 0:00:36.5]} 22...
Rc8 {[%clk 0:01:20.5]} 23. Qd2 {[%clk 0:00:33.3]} 23... b6 {[%clk 0:01:01.2]}
24. Re1 {[%clk 0:00:26.8]} 24... cxd3 {[%clk 0:00:57.4]} 25. Re3 {[%clk
0:00:26.9]} 25... Nf5 {[%clk 0:00:50.3]} 26. Rxd3 {[%clk 0:00:27.1]} 26... Ne4
{[%clk 0:00:44.4]} 27. Qe2 {[%clk 0:00:10.4]} 27... Qc4 {[%clk 0:00:35.1]} 28.
Rxe4 {[%clk 0:00:09]} 28... dxe4 {[%clk 0:00:35.4]} 29. Qxe4 {[%clk 0:00:09.8]}
29... Rf8 {[%clk 0:00:26.7]} 30. Kg2 {[%clk 0:00:09.6]} 30... Qd5 {[%clk
0:00:21.2]} 31. Qxd5 {[%clk 0:00:04.7]} 31... exd5 {[%clk 0:00:21.9]} 32. Rd2
{[%clk 0:00:03.3]} 32... Nd6 {[%clk 0:00:20.7]} 33. Re2 {[%clk 0:00:03.3]} 33...
Re8 {[%clk 0:00:17.5]} 34. Rxe8+ {[%clk 0:00:02]} 34... Nxe8 {[%clk 0:00:17.7]}
35. b4 {[%clk 0:00:02.6]} 35... axb4 {[%clk 0:00:16.8]} 36. Bxb4 {[%clk
0:00:03.5]} 36... Nc7 {[%clk 0:00:16.8]} 37. Bd6 {[%clk 0:00:02.1]} 37... Ne6
{[%clk 0:00:16.2]} 38. Be5 {[%clk 0:00:02.3]} 38... Kf7 {[%clk 0:00:16.1]} 39.
Kf3 {[%clk 0:00:02.9]} 39... g6 {[%clk 0:00:16.4]} 40. Kg4 {[%clk 0:00:02.4]}
40... Nd8 {[%clk 0:00:11.9]} 41. f4 {[%clk 0:00:02.7]} 41... Nc6 {[%clk
0:00:12.1]} 42. hxg6+ {[%clk 0:00:03.3]} 42... Kxg6 {[%clk 0:00:12.1]} 43. f5+
{[%clk 0:00:04]} 43... Kh7 {[%clk 0:00:09.3]} 44. Kh5 {[%clk 0:00:03]} 44... Nd8
{[%clk 0:00:06.7]} 45. Bc7 {[%clk 0:00:02.2]} 45... Nc6 {[%clk 0:00:05.9]} 46.
Bxb6 {[%clk 0:00:02.7]} 46... Kg7 {[%clk 0:00:06.3]} 47. Bc5 {[%clk 0:00:02.8]}
47... Kf6 {[%clk 0:00:06.5]} 48. Kxh6 {[%clk 0:00:01.9]} 48... Kxf5 {[%clk
0:00:06.7]} 49. Kg7 {[%clk 0:00:02.7]} 49... Ke4 {[%clk 0:00:06.8]} 50. Kf6
{[%clk 0:00:03.4]} 50... Kd3 {[%clk 0:00:06.3]} 51. Ke6 {[%clk 0:00:03.4]} 51...
Kc4 {[%clk 0:00:04.6]} 52. Kd6 {[%clk 0:00:02.5]} 52... Na5 {[%clk 0:00:04.9]}
53. Kc7 {[%clk 0:00:01.4]} 53... Nb3 {[%clk 0:00:05]} 54. Kb6 {[%clk 0:00:01.7]}
54... Nd2 {[%clk 0:00:03.4]} 55. a5 {[%clk 0:00:02]} 55... Ne4 {[%clk
0:00:01.8]} 56. a6 {[%clk 0:00:02.8]} 56... Nf6 {[%clk 0:00:02.2]} 57. a7 {[%clk
0:00:03.1]} 57... Nd7+ {[%clk 0:00:01.8]} 58. Kc7 {[%clk 0:00:03.8]} 58... Nxc5
{[%clk 0:00:01.2]} 59. dxc5 {[%clk 0:00:04.7]} 59... d4 {[%clk 0:00:01.7]} 60.
a8=Q {[%clk 0:00:05.5]} 60... d3 {[%clk 0:00:02.2]} 61. Qa5 {[%clk 0:00:05.8]}
61... Kd4 {[%clk 0:00:01.3]} 62. Qd2 {[%clk 0:00:06.7]} 62... Ke4 {[%clk
0:00:01.9]} 63. c6 {[%clk 0:00:07]} 63... Kd4 {[%clk 0:00:02.1]} 64. Kd7 {[%clk
0:00:07.9]} 64... Ke4 {[%clk 0:00:02.7]} 65. c7 {[%clk 0:00:08.8]} 65... Kd4
{[%clk 0:00:03.5]} 66. c8=Q {[%clk 0:00:09.7]} 66... Ke4 {[%clk 0:00:04.3]} 67.
Qc4+ {[%clk 0:00:09.6]} 67... Ke5 {[%clk 0:00:03.8]} 68. Qe3+ {[%clk 0:00:09.4]}
1-0